fUST/lending_fUST_20240122
["ID","MTS","AMOUNT","RATE_DAILY","PERIOD"]
[312458988,1705899045285,-582.01,0.00038904,31]
[312458989,1705899045294,-500.0,0.00038904,31]
[312458990,1705899045303,-652.87,0.00038904,31]
[312458991,1705899045313,-500.0,0.00038904,31]
[312458992,1705899045322,-509.62,0.00038904,31]
[312458993,1705899045331,-1579.75,0.00038904,31]
[312458994,1705899045341,-1511.66,0.00038904,31]
[312458995,1705899045351,-500.0,0.00038904,31]
[312458996,1705899045360,-7680.37,0.00038904,31]
[312458997,1705899045369,-503.352653,0.00038904,31]
[312458998,1705899045379,-503.47213639,0.00038904,31]
[312458999,1705899045388,-500.0,0.00038904,31]
[312459000,1705899045398,-500.97036519,0.00038904,31]
[312459001,1705899045408,-647.02,0.00038904,31]
[312459002,1705899045417,-500.0,0.00038904,31]
[312459003,1705899045426,-2422.84,0.00038904,31]
[312459004,1705899045436,-500.0,0.00038904,31]
[312459005,1705899045445,-500.0,0.00038904,31]
[312459006,1705899045454,-6937.44,0.00038904,31]
[312459007,1705899045464,-500.0,0.00038904,31]
[312459008,1705899045474,-500.0,0.00038904,31]
[312459009,1705899045483,-500.0,0.00038904,31]
[312459010,1705899045492,-8193.76,0.00038904,31]
[312459011,1705899045503,-500.0,0.00038904,31]
[312459012,1705899045513,-1469.69,0.00038904,31]
[312459014,1705899045522,-1523.76,0.00038904,31]
[312459016,1705899045533,-892.958995,0.00038999,2]
[312459018,1705899045542,-892.958995,0.00038999,2]
[312459019,1705899045551,-10000.0,0.00038999,2]
[312459020,1705899045559,-10000.0,0.00038999,2]
[312459021,1705899045569,-10000.0,0.00038999,2]
[312459023,1705899045579,-10000.0,0.00038999,2]
[312459025,1705899045588,-500.0,0.00038999,7]
[312459027,1705899045598,-500.0,0.00038999,7]
[312459029,1705899045608,-490.78580139,0.00038999,7]
[312459031,1705899045617,-500.0,0.00038999,7]
[312459032,1705899045626,-649.92951497,0.00038999,7]
[312459033,1705899045636,-500.0,0.00038999,7]
[312459035,1705899045646,-363.37111919,0.00038999,7]
[312459037,1705899045655,-500.0,0.00038999,7]
[312459039,1705899045665,-500.0,0.00038999,7]
[312459041,1705899045674,-305.6509041,0.00038999,7]
[312459043,1705899045684,-500.0,0.00038999,7]
[312459045,1705899045693,-500.0,0.00038999,7]
[312459047,1705899045703,-500.0,0.00038999,7]
[312459049,1705899045712,-500.0,0.00038999,7]
[312459051,1705899045721,-245.30368558,0.00039,30]
[312459053,1705899045731,-154.9690062,0.00039167,4]
[312459054,1705899045740,-500.0,0.00039178,31]
[312459055,1705899045750,-529.64693721,0.00039178,31]
[312459056,1705899045762,-500.0,0.00039178,31]
[312459057,1705899045771,-500.0,0.00039178,7]
[312459058,1705899045780,-737.21,0.00039178,31]
[312459059,1705899045789,-500.0,0.00039178,31]
[312459060,1705899045800,-150.0,0.00039178,31]
[312459063,1705899045810,-505.72955858,0.00039178,31]
[312459064,1705899045819,-565.55,0.00039178,31]
[312459066,1705899045828,-569.9,0.00039178,31]
[312459068,1705899045838,-500.0,0.00039178,31]
[312459070,1705899045847,-500.0,0.00039178,31]
[312459072,1705899045857,-500.0,0.00039178,31]
[312459074,1705899045866,-500.0,0.00039178,20]
[312459076,1705899045875,-1206.31,0.00039178,31]
[312459078,1705899045884,-1081.93,0.00039178,31]
[312459080,1705899045894,-500.0,0.00039178,31]
[312459082,1705899045904,-500.0,0.00039178,31]
[312459084,1705899045913,-523.26,0.00039178,31]
[312459087,1705899045922,-506.17367361,0.00039178,31]
[312459088,1705899045931,-509.8811463,0.00039178,31]
[312459090,1705899045940,-2504.95,0.00039178,31]
[312459092,1705899045950,-500.0,0.00039178,31]
[312459095,1705899045959,-500.0,0.00039178,31]
[312459099,1705899045968,-500.0,0.00039178,31]
[312459102,1705899045978,-500.0,0.00039178,31]
[312459104,1705899045987,-2875.37,0.00039178,31]
[312459106,1705899045996,-522.12134073,0.00039178,31]
[312459109,1705899046008,-513.91532178,0.00039178,31]
[312459110,1705899046016,-500.0,0.00039178,31]
[312459113,1705899046026,-500.0,0.00039178,31]
[312459115,1705899046035,-500.0,0.00039178,31]
[312459118,1705899046044,-568.44,0.00039178,31]
[312459119,1705899046052,-1268.59,0.00039178,31]
[312459121,1705899046062,-500.0,0.00039178,31]
[312459123,1705899046071,-505.53043322,0.00039178,31]
[312459125,1705899046080,-279.48639114,0.00039178,31]
[312459126,1705899046092,-1956.78,0.00039178,31]
[312459128,1705899046100,-500.0,0.00039178,31]
[312459130,1705899046109,-725.96,0.00039178,31]
[312459131,1705899046117,-851.85,0.00039178,31]
[312459133,1705899046129,-1991.08,0.00039178,31]
[312459135,1705899046138,-2270.48,0.00039178,31]
[312459137,1705899046148,-500.0,0.00039178,31]
[312459139,1705899046158,-500.0,0.00039178,31]
[312459140,1705899046166,-294.6084069,0.00039178,31]
[312459142,1705899046176,-600.28,0.00039178,31]
[312459144,1705899046186,-1905.21,0.00039178,31]
[312459146,1705899046196,-197.88479101,0.00039178,31]
[312459148,1705899046205,-1691.98,0.00039178,31]
[312459149,1705899046215,-500.0,0.00039178,31]
[312459151,1705899046225,-500.0,0.00039178,31]
[312459153,1705899046234,-500.0,0.00039178,31]
[312459155,1705899046243,-500.0,0.00039178,31]
[312459156,1705899046254,-768.09,0.00039178,31]
[312459158,1705899046264,-500.0,0.00039178,31]
[312459160,1705899046274,-5639.04,0.00039178,31]
[312459162,1705899046283,-1643.39,0.00039178,31]
[312459164,1705899046292,-1017.31,0.00039178,31]
[312459165,1705899046301,-500.0,0.00039178,31]
[312459167,1705899046311,-2411.15,0.00039178,31]
[312459169,1705899046320,-500.0,0.00039178,31]
[312459171,1705899046329,-2421.62,0.00039178,31]
[312459172,1705899046338,-507.93073559,0.00039178,31]
[312459174,1705899046348,-25343.2,0.00039178,14]
[312459176,1705899046357,-500.0,0.00039178,31]
[312459177,1705899046366,-766.17,0.00039178,31]
[312459179,1705899046375,-500.0,0.00039178,31]
[312459181,1705899046384,-17138.34,0.00039178,31]
[312459183,1705899046393,-500.0,0.00039178,31]
[312459184,1705899046403,-2706.21,0.00039178,31]
[312459186,1705899046412,-995.03,0.00039178,31]
[312459188,1705899046421,-794.59,0.00039178,31]
[312459189,1705899046431,-1139.24,0.00039178,31]
[312459190,1705899046440,-500.0,0.00039178,31]
[312459191,1705899046449,-502.96989885,0.00039178,31]
[312459192,1705899046458,-503.37439543,0.00039178,31]
[312459193,1705899046467,-1221.38,0.00039178,31]
[312459194,1705899046477,-7792.65,0.00039178,31]
[312459195,1705899046487,-500.0,0.00039178,31]
[312459196,1705899046496,-500.0,0.00039178,31]
[312459197,1705899046506,-500.0,0.00039178,31]
[312459198,1705899046516,-1267.15,0.00039178,31]
[312459199,1705899046525,-500.0,0.00039178,31]
[312459200,1705899046535,-1766.86,0.00039178,31]
[312459201,1705899046544,-2224.67,0.00039178,31]
[312459202,1705899046553,-582.01,0.00039178,31]
[312459203,1705899046562,-500.0,0.00039178,31]
[312459204,1705899046572,-652.87,0.00039178,31]
[312459205,1705899046581,-500.0,0.00039178,31]
[312459206,1705899046590,-509.62,0.00039178,31]
[312459207,1705899046599,-1579.75,0.00039178,31]
[312459208,1705899046609,-1511.66,0.00039178,31]
[312459209,1705899046617,-505.01044633,0.00039178,31]
[312459210,1705899046626,-7680.37,0.00039178,31]
[312459211,1705899046636,-501.53297085,0.00039178,31]
[312459212,1705899046646,-647.02,0.00039178,31]
[312459213,1705899046656,-568.39787445,0.00039178,31]
[312459214,1705899046665,-2422.84,0.00039178,31]
[312459215,1705899046674,-500.0,0.00039178,31]
[312459216,1705899046683,-500.0,0.00039178,31]
[312459217,1705899046692,-6937.44,0.00039178,31]
[312459218,1705899046702,-500.0,0.00039178,31]
[312459219,1705899046711,-504.72786569,0.00039178,31]
[312459220,1705899046720,-500.0,0.00039178,31]
[312459221,1705899046730,-8193.76,0.00039178,31]
[312459222,1705899046740,-500.0,0.00039178,31]
[312459223,1705899046749,-1469.69,0.00039178,31]
[312459224,1705899046761,-1523.76,0.00039178,31]
[312459225,1705899046770,-157.894736,0.00039269,2]
[312459226,1705899046779,-174.913712,0.00039335,2]
[312459227,1705899046789,-603.4568888,0.00039349,7]
[312459228,1705899046798,-500.0,0.00039452,31]
[312459229,1705899046807,-500.0,0.00039452,31]
[312459230,1705899046816,-500.0,0.00039452,7]
[312459231,1705899046826,-737.21,0.00039452,31]
[312459232,1705899046835,-500.0,0.00039452,31]
[312459233,1705899046844,-150.0,0.00039452,31]
[312459234,1705899046854,-565.55,0.00039452,31]
[312459235,1705899046863,-569.9,0.00039452,31]
[312459236,1705899046873,-500.0,0.00039452,31]
[312459237,1705899046887,-500.0,0.00039452,31]
[312459238,1705899046896,-500.0,0.00039452,31]
[312459239,1705899046906,-500.0,0.00039452,20]
[312459240,1705899046914,-1206.31,0.00039452,31]
[312459241,1705899046924,-1081.93,0.00039452,31]
[312459242,1705899046933,-500.0,0.00039452,31]
[312459243,1705899046942,-500.0,0.00039452,31]
[312459244,1705899046951,-523.26,0.00039452,31]
[312459245,1705899046960,-2504.95,0.00039452,31]
[312459246,1705899046970,-500.0,0.00039452,31]
[312459247,1705899046979,-500.0,0.00039452,31]
[312459248,1705899046988,-247.18068353,0.00039452,31]
[312459249,1705899046997,-500.0,0.00039452,31]
[312459250,1705899047007,-2875.37,0.00039452,31]
[312459251,1705899047016,-511.46524885,0.00039452,31]
[312459252,1705899047025,-500.0,0.00039452,31]
[312459253,1705899047034,-500.0,0.00039452,31]
[312459254,1705899047043,-568.44,0.00039452,31]
[312459255,1705899047053,-1268.59,0.00039452,31]
[312459256,1705899047063,-500.0,0.00039452,31]
[312459257,1705899047072,-1956.78,0.00039452,31]
[312459258,1705899047083,-500.0,0.00039452,31]
[312459259,1705899047097,-725.96,0.00039452,31]
[312459260,1705899047106,-851.85,0.00039452,31]
[312459261,1705899047115,-1991.08,0.00039452,31]
[312459262,1705899047124,-2270.48,0.00039452,31]
[312459263,1705899047134,-500.0,0.00039452,31]
[312459264,1705899047143,-319.90738363,0.00039452,31]
[312459265,1705899047153,-600.28,0.00039452,31]
[312459266,1705899047163,-1905.21,0.00039452,31]
[312459267,1705899047172,-1691.98,0.00039452,31]
[312459268,1705899047181,-517.27188851,0.00039452,31]
[312459269,1705899047190,-507.74708946,0.00039452,31]
[312459270,1705899047199,-394.92678634,0.00039452,31]
[312459271,1705899047209,-500.0,0.00039452,31]
[312459272,1705899047218,-768.09,0.00039452,31]
[312459273,1705899047228,-500.0,0.00039452,31]
[312459274,1705899047237,-5639.04,0.00039452,31]
[312459275,1705899047246,-1643.39,0.00039452,31]
[312459276,1705899047257,-1017.31,0.00039452,31]
[312459277,1705899047266,-518.60892669,0.00039452,31]
[312459278,1705899047275,-2411.15,0.00039452,31]
[312459279,1705899047284,-500.0,0.00039452,31]
[312459280,1705899047293,-2421.62,0.00039452,31]
[312459281,1705899047302,-25343.2,0.00039452,14]
[312459282,1705899047311,-347.5754139,0.00039452,31]
[312459283,1705899047320,-766.17,0.00039452,31]
[312459284,1705899047329,-500.0,0.00039452,31]
[312459285,1705899047338,-17138.34,0.00039452,31]
[312459286,1705899047347,-500.0,0.00039452,31]
[312459287,1705899047356,-2706.21,0.00039452,31]
[312459288,1705899047366,-995.03,0.00039452,31]
[312459289,1705899047375,-794.59,0.00039452,31]
[312459290,1705899047385,-1139.24,0.00039452,31]
[312459291,1705899047394,-500.0,0.00039452,31]
[312459292,1705899047404,-1221.38,0.00039452,31]
[312459293,1705899047414,-500.0,0.00039452,31]
[312459294,1705899047423,-7792.65,0.00039452,31]
[312459295,1705899047433,-500.0,0.00039452,31]
[312459296,1705899047544,-505.37016469,0.00039452,31]
[312459297,1705899047554,-1267.15,0.00039452,31]
[312459298,1705899047564,-500.0,0.00039452,31]
[312459299,1705899047573,-1766.86,0.00039452,31]
[312459300,1705899047583,-2224.67,0.00039452,31]
[312459301,1705899047593,-582.01,0.00039452,31]
[312459302,1705899047605,-513.38564807,0.00039452,31]
[312459303,1705899047614,-652.87,0.00039452,31]
[312459304,1705899047624,-178.40485405,0.00039452,31]
[312459305,1705899047635,-509.62,0.00039452,31]
[312459306,1705899047645,-1579.75,0.00039452,31]
[312459307,1705899047656,-1511.66,0.00039452,31]
[312459308,1705899047667,-7680.37,0.00039452,31]
[312459309,1705899047677,-647.02,0.00039452,31]
[312459310,1705899047686,-2422.84,0.00039452,31]
[312459311,1705899047696,-500.0,0.00039452,31]
[312459312,1705899047706,-500.0,0.00039452,31]
[312459313,1705899047715,-6937.44,0.00039452,31]
[312459314,1705899047725,-172.49121502,0.00039452,31]
[312459315,1705899047735,-167.40155184,0.00039452,31]
[312459316,1705899047745,-8193.76,0.00039452,31]
[312459317,1705899047760,-500.0,0.00039452,31]
[312459318,1705899047770,-1469.69,0.00039452,31]
[312459319,1705899047780,-1523.76,0.00039452,31]
[312459320,1705899047789,-500.0,0.00039726,31]
[312459321,1705899047799,-500.0,0.00039726,31]
[312459322,1705899047808,-253.28891928,0.00039726,7]
[312459323,1705899047819,-737.21,0.00039726,31]
[312459324,1705899047828,-500.0,0.00039726,31]
[312459325,1705899047838,-150.0,0.00039726,31]
[312459326,1705899047848,-565.55,0.00039726,31]
[312459327,1705899047858,-569.9,0.00039726,31]
[312459328,1705899047867,-407.72383283,0.00039726,31]
[312459329,1705899047877,-500.0,0.00039726,31]
[312459330,1705899047887,-500.0,0.00039726,31]
[312459331,1705899047896,-340.67376989,0.00039726,20]
[312459332,1705899047906,-1206.31,0.00039726,31]
[312459333,1705899047916,-1081.93,0.00039726,31]
[312459334,1705899047925,-500.0,0.00039726,31]
[312459335,1705899047934,-500.0,0.00039726,31]
[312459336,1705899047944,-523.26,0.00039726,31]
[312459337,1705899047954,-2504.95,0.00039726,31]
[312459338,1705899047963,-500.0,0.00039726,31]
[312459339,1705899047973,-500.0,0.00039726,31]
[312459340,1705899047984,-500.0,0.00039726,31]
[312459341,1705899047993,-2875.37,0.00039726,31]
[312459342,1705899048003,-500.0,0.00039726,31]
[312459343,1705899048016,-500.0,0.00039726,31]
[312459344,1705899048027,-568.44,0.00039726,31]
[312459345,1705899048037,-1268.59,0.00039726,31]
[312459346,1705899048047,-500.0,0.00039726,31]
[312459347,1705899048057,-1956.78,0.00039726,31]
[312459348,1705899048068,-500.0,0.00039726,31]
[312459349,1705899048079,-725.96,0.00039726,31]
[312459350,1705899048088,-851.85,0.00039726,31]
[312459351,1705899048099,-1991.08,0.00039726,31]
[312459352,1705899048109,-2270.48,0.00039726,31]
[312459353,1705899048119,-500.0,0.00039726,31]
[312459354,1705899048128,-600.28,0.00039726,31]
[312459355,1705899048139,-1905.21,0.00039726,31]
[312459356,1705899048149,-1691.98,0.00039726,31]
[312459357,1705899048159,-500.0,0.00039726,31]
[312459358,1705899048169,-768.09,0.00039726,31]
[312459359,1705899048179,-500.0,0.00039726,31]
[312459360,1705899048188,-5639.04,0.00039726,31]
[312459361,1705899048197,-1643.39,0.00039726,31]
[312459362,1705899048206,-1017.31,0.00039726,31]
[312459363,1705899048215,-2411.15,0.00039726,31]
[312459364,1705899048224,-500.0,0.00039726,31]
[312459365,1705899048233,-2421.62,0.00039726,31]
[312459366,1705899048242,-25343.2,0.00039726,14]
[312459367,1705899048252,-766.17,0.00039726,31]
[312459368,1705899048263,-500.0,0.00039726,31]
[312459369,1705899048272,-17138.34,0.00039726,31]
[312459370,1705899048281,-500.0,0.00039726,31]
[312459371,1705899048290,-2706.21,0.00039726,31]
[312459372,1705899048299,-995.03,0.00039726,31]
[312459373,1705899048308,-794.59,0.00039726,31]
[312459374,1705899048317,-1139.24,0.00039726,31]
[312459375,1705899048326,-500.0,0.00039726,31]
[312459376,1705899048335,-1221.38,0.00039726,31]
[312459377,1705899048344,-500.0,0.00039726,31]
[312459378,1705899048353,-7792.65,0.00039726,31]
[312459379,1705899048362,-611.3139919,0.00039726,31]
[312459380,1705899048372,-1267.15,0.00039726,31]
[312459381,1705899048381,-500.0,0.00039726,31]
[312459382,1705899048390,-1766.86,0.00039726,31]
[312459383,1705899048400,-2224.67,0.00039726,31]
[312459384,1705899048410,-582.01,0.00039726,31]
[312459385,1705899048420,-652.87,0.00039726,31]
[312459386,1705899048430,-1579.75,0.00039726,31]
[312459387,1705899048439,-509.62,0.00039726,31]
[312459388,1705899048449,-1511.66,0.00039726,31]
[312459389,1705899048459,-7680.37,0.00039726,31]
[312459390,1705899048469,-647.02,0.00039726,31]
[312459391,1705899048479,-2422.84,0.00039726,31]
[312459392,1705899048488,-500.0,0.00039726,31]
[312459393,1705899048497,-500.0,0.00039726,31]
[312459394,1705899048508,-6937.44,0.00039726,31]
[312459395,1705899048517,-8193.76,0.00039726,31]
[312459396,1705899048526,-503.71831469,0.00039726,31]
[312459397,1705899048536,-1469.69,0.00039726,31]
[312459398,1705899048546,-1523.76,0.00039726,31]
[312459399,1705899048555,-153.381924,0.00039726,2]
[312459400,1705899048564,-250.0,0.00039726,2]
[312459401,1705899048573,-250.0,0.00039726,2]
[312459402,1705899048582,-294.052559,0.00039726,2]
[312459403,1705899048591,-294.052559,0.00039726,2]
[312459404,1705899048600,-151.0,0.00039726,2]
[312459405,1705899048609,-892.958995,0.00039726,2]
[312459406,1705899048619,-892.958995,0.00039726,2]
[312459407,1705899048628,-10000.0,0.00039726,2]
[312459408,1705899048638,-10000.0,0.00039726,2]
[312459409,1705899048647,-10000.0,0.00039726,2]
[312459410,1705899048657,-10000.0,0.00039726,2]
[312459411,1705899048666,-157.894736,0.00039878,2]
[312459412,1705899048675,-182.42706309,0.00039919,10]
[312459413,1705899048685,-5770.55898589,0.0003999,4]
[312459414,1705899048695,-154521.59341124,0.0004,7]
[312459415,1705899048704,-738.23836783,0.0004,2]
[312459416,1705899048714,-5000.0,0.0004,2]
[312459417,1705899048723,-719.57029108,0.0004,2]
[312459418,1705899048732,-6341.24667327,0.0004,15]
[312459419,1705899048742,-154.73694719,0.0004,4]
[312459420,1705899048752,-1279.9341791,0.0004,4]
[312459421,1705899048763,-154.73694719,0.0004,4]
[312459422,1705899048773,-59247.05671983,0.0004,5]
[312459423,1705899048782,-360.16443844,0.0004,4]
[312459424,1705899048792,-953.99276001,0.0004,2]
[312459425,1705899048801,-20010.820884,0.0004,15]
[312459426,1705899048810,-289.99848105,0.0004,4]
[312459427,1705899048819,-1846.00750522,0.0004,4]
[312459428,1705899048828,-804.7506843,0.0004,7]
[312459429,1705899048838,-1237.42515973,0.0004,30]
[312459430,1705899048847,-540.64147029,0.0004,120]
[312459431,1705899048856,-160.23316055,0.0004,120]
[312459432,1705899048865,-8600.0,0.0004,13]
[312459433,1705899048875,-4996.60429158,0.0004,30]
[312459434,1705899048885,-1001.99,0.0004,9]
[312459435,1705899048894,-1226.44022208,0.0004,10]
[312459436,1705899048904,-8039.8657377,0.0004,7]
[312459437,1705899048913,-320.11,0.0004,2]
[312459438,1705899048923,-1320.74418374,0.0004,2]
[312459439,1705899048932,-151.0,0.0004,2]
[312459440,1705899048942,-500.0,0.0004,31]
[312459441,1705899048951,-500.0,0.0004,31]
[312459442,1705899048960,-737.21,0.0004,31]
[312459443,1705899048969,-500.0,0.0004,31]
[312459444,1705899048979,-226.75013316,0.0004,31]
[312459445,1705899048988,-565.55,0.0004,31]
[312459446,1705899048998,-151.0,0.0004,2]
[312459447,1705899049007,-569.9,0.0004,31]
[312459448,1705899049016,-500.0,0.0004,31]
[312459449,1705899049026,-500.0,0.0004,31]
[312459450,1705899049035,-1206.31,0.0004,31]
[312459451,1705899049044,-1081.93,0.0004,31]
[312459452,1705899049053,-500.0,0.0004,31]
[312459453,1705899049063,-250.0,0.0004,2]
[312459454,1705899049072,-500.0,0.0004,31]
[312459455,1705899049082,-250.0,0.0004,2]
[312459456,1705899049091,-523.26,0.0004,31]
[312459457,1705899049103,-2504.95,0.0004,31]
[312459458,1705899049112,-500.0,0.0004,31]
[312459459,1705899049121,-500.0,0.0004,31]
[312459460,1705899049130,-500.0,0.0004,31]
[312459461,1705899049140,-2875.37,0.0004,31]
[312459462,1705899049150,-294.052559,0.0004,2]
[312459463,1705899049160,-294.052559,0.0004,2]
[312459464,1705899049169,-500.0,0.0004,31]
[312459465,1705899049179,-500.0,0.0004,31]
[312459466,1705899049189,-568.44,0.0004,31]
[312459467,1705899049198,-883.79089898,0.0004,31]
[312459468,1705899049282,-384.79910102,0.0004,31]
[312459469,1705899049293,-500.0,0.0004,31]
[312459470,1705899049302,-1956.78,0.0004,31]
[312459471,1705899049312,-500.0,0.0004,31]
[312459472,1705899049322,-892.958995,0.0004,2]
[312459473,1705899049331,-892.958995,0.0004,2]
[312459474,1705899049341,-725.96,0.0004,31]
[312459475,1705899049350,-2000.0,0.0004,27]
[312459476,1705899049359,-851.85,0.0004,31]
[312459477,1705899049369,-10000.0,0.0004,2]
[312459478,1705899049380,-1991.08,0.0004,31]
[312459479,1705899049389,-2270.48,0.0004,31]
[312459480,1705899049398,-10000.0,0.0004,2]
[312459481,1705899049408,-500.0,0.0004,31]
[312459482,1705899049418,-10000.0,0.0004,2]
[312459483,1705899049427,-10000.0,0.0004,2]
[312459484,1705899049436,-600.28,0.0004,31]
[312459485,1705899049446,-1905.21,0.0004,31]
[312459486,1705899049456,-1691.98,0.0004,31]
[312459487,1705899049465,-500.0,0.0004,31]
[312459488,1705899049475,-768.09,0.0004,31]
[312459489,1705899049485,-500.0,0.0004,31]
[312459490,1705899049494,-5639.04,0.0004,31]
[312459491,1705899049504,-1643.39,0.0004,31]
[312459492,1705899049515,-1017.31,0.0004,31]
[312459493,1705899049525,-2411.15,0.0004,31]
[312459494,1705899049536,-500.0,0.0004,31]
[312459495,1705899049545,-2421.62,0.0004,31]
[312459496,1705899049555,-25343.2,0.0004,14]
[312459497,1705899049565,-766.17,0.0004,31]
[312459498,1705899049574,-500.0,0.0004,31]
[312459499,1705899049583,-17138.34,0.0004,31]
[312459500,1705899049593,-500.0,0.0004,31]
[312459501,1705899049602,-2706.21,0.0004,31]
[312459502,1705899049611,-995.03,0.0004,31]
[312459503,1705899049621,-794.59,0.0004,31]
[312459504,1705899049632,-1139.24,0.0004,31]
[312459505,1705899049641,-500.0,0.0004,31]
[312459506,1705899049651,-1221.38,0.0004,31]
[312459507,1705899049661,-500.0,0.0004,31]
[312459508,1705899049670,-7792.65,0.0004,31]
[312459509,1705899049679,-200.45392187,0.0004,30]
[312459510,1705899049689,-1267.15,0.0004,31]
[312459511,1705899049697,-500.0,0.0004,31]
[312459512,1705899049706,-1766.86,0.0004,31]
[312459513,1705899049715,-2224.67,0.0004,31]
[312459514,1705899049724,-582.01,0.0004,31]
[312459515,1705899049734,-652.87,0.0004,31]
[312459516,1705899049743,-1579.75,0.0004,31]
[312459517,1705899049752,-509.62,0.0004,31]
[312459518,1705899049763,-1511.66,0.0004,31]
[312459519,1705899049772,-7680.37,0.0004,31]
[312459520,1705899049781,-647.02,0.0004,31]
[312459521,1705899049791,-2422.84,0.0004,31]
[312459522,1705899049801,-500.0,0.0004,31]
[312459523,1705899049810,-6937.44,0.0004,31]
[312459524,1705899049820,-517.29298027,0.0004,31]
[312459525,1705899049829,-8193.76,0.0004,31]
[312459526,1705899049839,-1469.69,0.0004,31]
[312459527,1705899049848,-1523.76,0.0004,31]
[312459528,1705899049858,-3054.323274,0.0004001,27]
[312459529,1705899049867,-166.84376062,0.00040011,4]
[312459530,1705899049877,-1000.0,0.000401,30]
[312459531,1705899049886,-151.0,0.0004014,2]
[312459532,1705899049984,-151.0,0.0004014,2]
[312459533,1705899049994,-174.913712,0.00040215,2]
[312459534,1705899050003,-151.0,0.00040222,2]
[312459535,1705899050014,-250.0,0.00040222,2]
[312459536,1705899050024,-250.0,0.00040222,2]
[312459537,1705899050034,-294.052559,0.00040243,2]
[312459538,1705899050043,-294.052559,0.00040243,2]
[312459539,1705899050052,-892.958995,0.00040243,2]
[312459540,1705899050061,-892.958995,0.00040243,2]
[312459541,1705899050071,-10000.0,0.00040243,2]
[312459542,1705899050080,-10000.0,0.00040243,2]
[312459543,1705899050089,-10000.0,0.00040243,2]
[312459544,1705899050101,-569.49736,0.00040243,2]
[312459545,1705899050110,-415524.3874,0.00040254,7]
[312459546,1705899050120,-500.0,0.00040273,31]
[312459547,1705899050129,-500.0,0.00040273,31]
[312459548,1705899050138,-737.21,0.00040273,31]
[312459549,1705899050147,-500.0,0.00040273,31]
[312459550,1705899050157,-565.55,0.00040273,31]
[312459551,1705899050166,-569.9,0.00040273,31]
[312459552,1705899050176,-500.0,0.00040273,31]
[312459553,1705899050186,-500.0,0.00040273,31]
[312459554,1705899050195,-1206.31,0.00040273,31]
[312459555,1705899050204,-1081.93,0.00040273,31]
[312459556,1705899050214,-500.0,0.00040273,31]
[312459557,1705899050223,-500.0,0.00040273,31]
[312459558,1705899050233,-523.26,0.00040273,31]
[312459559,1705899050242,-2504.95,0.00040273,31]
[312459560,1705899050251,-500.0,0.00040273,31]
[312459561,1705899050262,-500.0,0.00040273,31]
[312459562,1705899050271,-500.0,0.00040273,31]
[312459563,1705899050280,-2875.37,0.00040273,31]
[312459564,1705899050289,-500.0,0.00040273,31]
[312459565,1705899050298,-500.0,0.00040273,31]
[312459566,1705899050307,-568.44,0.00040273,31]
[312459567,1705899050317,-1268.59,0.00040273,31]